[Event "45th FIDE Olympiad 2024"]
[Site "Budapest"]
[Date "2024.09.11"]
[Round "1.32"]
[White "Svane, Frederik"]
[Black "Rakotomaharavo, Dylan"]
[Result "1-0"]
[ECO "B45"]
[WhiteElo "2640"]
[BlackElo "2078"]
[Annotator "TA"]
[PlyCount "169"]
[EventDate "2024.09.05"]
[EventType "team-tourn"]
[EventCountry "HUN"]
[SourceTitle "playchess.com"]
[Source "ChessBase"]
[SourceQuality "1"]
[WhiteTeam "Germany"]
[BlackTeam "Madagascar"]
[WhiteTeamCountry "GER"]
[BlackTeamCountry "MAD"]
[TimeControl "40/5400+30:1800+30"]

{[%evp 65,169,0,81,81,123,123,123,123,123,123,123,123,123,0,123,0,123,123,123,123,123,123,123,123,123,123,123,100,100,62,62,62,102,102,102,102,102,102,102,0,0,0,73,0,0,0,0,0,0,0,0,0,0,0,0,0,8,8,8,8,8,8,8,8,8,8,8,0,0,0,8,0,8,8,8,8,8,0,8,8,8,8,8,8,8,8,13,8,8,8,217,16,77,8,89,19,1590,1603,1904,1290,2084,1716,5065,3510,2169,1372]} 1. e4 {[%emt 0:00:04]} c5 {[%emt 0:03:49]} 2. Nf3 {[%emt 0:00:06]} e6 {[%emt 0:00:10]} 3. d4 {[%emt 0:00:17]} cxd4 {[%emt 0:00:07]} 4. Nxd4 {[%emt 0:00:07]} Nf6 {[%emt 0:00:10]} 5. Nc3 {[%emt 0:00:09]} Nc6 {[%emt 0:00:18]} 6. a3 {[%emt 0:00:07]} Be7 {[%emt 0:02:07]} 7. Nxc6 {[%emt 0:00:32] B45: Sicilian Four Knights.} dxc6 {[%emt 0:01:10]} 8. Qxd8+ {[%emt 0:14:49]} Bxd8 {[%emt 0:00:07]} 9. Bf4 {[%emt 0:00:55]} Nd7 {[%emt 0:03:27]} 10. Bd6 {[%emt 0:02:40]} e5 $146 {[%emt 0:03:58]} ({Predecessor:} 10... Be7 11. O-O-O Bxd6 12. Rxd6 Ke7 13. Rd2 b5 14. Be2 Rd8 15. f4 e5 16. Rhd1 Bb7 {1-0 Popov,V (2195)-Kruk,S (2138) RUS HKMC-02 email 2012}) 11. Bc4 {[%emt 0:18:18]} Be7 {[%emt 0:00:16]} 12. O-O-O {[%emt 0:01:56]} Bxd6 {[%emt 0:00:43]} 13. Rxd6 {[%emt 0:00:01]} Ke7 {[%emt 0:01:50]} 14. Rhd1 {[%emt 0:00:14]} Nb6 {[%emt 0:03:26]} 15. Ba2 {[%emt 0:00:36]} Bg4 {[%emt 0:08:12]} 16. f3 {[%emt 0:01:31]} Be6 {[%emt 0:00:13]} 17. Bxe6 {[%emt 0:00:43]} fxe6 {[%emt 0:00:04]} 18. R6d3 {[%emt 0:02:15]} Rad8 {[%emt 0:00:34]} 19. a4 {[%emt 0:06:02]} Rxd3 {[%emt 0:00:23]} 20. Rxd3 {[%emt 0:00:02]} Rd8 {[%emt 0:00:22]} 21. Rxd8 {[%emt 0:00:18]} Kxd8 {[%emt 0:00:06]} 22. b3 {[%emt 0:00:10]} Nd7 {[%emt 0:01:02]} 23. Kd2 {[%emt 0:01:24]} Ke7 {[%emt 0:00:35]} 24. Nd1 {[%emt 0:09:38]} Kd6 {[%emt 0:02:44]} 25. Kc3 {[%emt 0:01:44]} b6 {[%emt 0:02:02]} 26. Nb2 {[%emt 0:01:03]} a6 {[%emt 0:01:38]} 27. h4 {[%emt 0:06:19]} Kc7 {[%emt 0:03:25]} 28. Nd3 {[%emt 0:05:04]} Kd6 {[%emt 0:02:35]} 29. Kc4 {[%emt 0:00:16]} Kc7 {[%emt 0:00:37]} 30. b4 {[%emt 0:10:51]} Kd6 {[%emt 0:02:46]} 31. Kb3 {[%emt 0:00:56]} Kc7 {[%emt 0:02:53]} 32. Kc3 {[%emt 0:03:40]} Kd6 {[%emt 0:05:06]} 33. Kb3 {[%emt 0:00:01]} Kc7 $1 {[%emt 0:00:22]} 34. Nb2 {[%emt 0:00:07]} Kd6 {[%emt 0:00:31]} 35. a5 {[%emt 0:01:57]} ({Much weaker is} 35. Nc4+ $6 Kc7 $11) 35... b5 {[%emt 0:01:05]} 36. c4 $1 {[%emt 0:00:06]} Kc7 {[%emt 0:00:44]} 37. Nd3 {[%emt 0:00:13]} Kd6 {[%emt 0:00:46]} 38. Kc3 {[%emt 0:00:01]} Kc7 {[%emt 0:05:56]} 39. Kb3 {[%emt 0:00:09]} Kd6 $1 {[%emt 0:00:09]} 40. Kc3 {[%emt 0:00:05]} Kc7 $1 {[%emt 0:00:16]} 41. c5 {[%emt 0:42:08]} Kd8 {[%emt 0:30:15]} 42. Kd2 {[%emt 0:00:06]} Ke7 {[%emt 0:00:11]} 43. Ke3 {[%emt 0:00:09]} Kf6 {[%emt 0:00:17]} 44. Kf2 {[%emt 0:00:06]} h6 {[%emt 0:02:28]} 45. Kg3 {[%emt 0:00:42]} g5 {[%emt 0:03:48]} 46. Nf2 {[%emt 0:00:00]} Kg6 {[%emt 0:00:00]} 47. Ng4 {[%emt 0:00:00]} Kh5 {[%emt 0:00:00]} 48. hxg5 {[%emt 0:00:00]} hxg5 {[%emt 0:00:00]} 49. Kf2 {[%emt 0:00:00]} Kg6 {[%emt 0:00:00]} 50. Ke3 {[%emt 0:00:00]} Kh5 {[%emt 0:00:00]} 51. g3 {[%emt 0:00:00]} Kg6 {[%emt 0:00:00]} 52. f4 {[%emt 0:00:00]} (52. Kd3 $16) 52... exf4+ {[%emt 0:00:00]} 53. gxf4 {[%emt 0:00:00]} e5 {[%emt 0:00:00]} (53... gxf4+ $11 54. Kxf4 Kf7) 54. fxg5 {[%emt 0:00:00]} ({Of course not} 54. fxe5 Kf7 $11) (54. Nxe5+ Nxe5 55. fxe5 Kf7 $11) (54. f5+ $1 $16 Kg7 55. Ke2) 54... Kxg5 $11 {[%emt 0:00:00]} 55. Kf3 {[%emt 0:00:00]} Kg6 {[%emt 0:00:00]} 56. Kg2 {[%emt 0:00:00]} Kh5 {[%emt 0:00:00]} 57. Kh3 {[%emt 0:02:17]} Kg5 {[%emt 0:00:00]} 58. Kg3 {[%emt 0:00:04]} Kh5 $1 {[%emt 0:00:00]} 59. Ne3 {[%emt 0:05:18]} Kg5 {[%emt 0:00:00]} 60. Nf5 {[%emt 0:02:32]} Kh5 {[%emt 0:00:00]} 61. Nd6 {[%emt 0:01:07]} Kg5 {[%emt 0:01:38]} 62. Ne8 {[%emt 0:00:11]} Kh5 {[%emt 0:00:56]} 63. Kf3 {[%emt 0:00:31]} Kg5 {[%emt 0:00:15]} 64. Nc7 {[%emt 0:00:55]} Nb8 {[%emt 0:00:09]} 65. Kg3 {[%emt 0:00:17]} Kh5 $1 {[%emt 0:00:11]} 66. Kf2 {[%emt 0:00:37]} Kg4 {[%emt 0:00:19]} 67. Ke3 {[%emt 0:00:05]} Kg5 {[%emt 0:00:31]} 68. Kf3 {[%emt 0:00:10]} Kh5 {[%emt 0:00:10]} 69. Ne6 {[%emt 0:00:47]} (69. Kg3 $5) 69... Kh4 {[%emt 0:01:14]} 70. Nf8 {[%emt 0:00:28]} Kh5 {[%emt 0:00:36]} 71. Ne6 {[%emt 0:01:27]} Kh4 {[%emt 0:00:06]} 72. Nd8 {[%emt 0:00:03]} Kh5 {[%emt 0:00:18]} 73. Nf7 {[%emt 0:00:09]} Nd7 {[%emt 0:00:04]} 74. Kg3 {[%emt 0:00:19]} Kg6 $1 {[%emt 0:01:46]} 75. Nd8 {[%emt 0:00:02]} Nb8 $1 {[%emt 0:00:42]} 76. Kh4 {[%emt 0:01:11]} Kf6 {[%emt 0:00:14]} 77. Kg4 {[%emt 0:00:20]} Kg6 $2 {[%emt 0:00:31]} (77... Ke7 $11 78. Nb7 Kf6) 78. Nb7 $2 {[%emt 0:00:04]} (78. Ne6 $1 $18 {[%cal Re6c7]} Nd7 79. Nc7 Nxc5 80. Kf3 (80. bxc5 b4 $16)) 78... Nd7 $11 {[%emt 0:00:20]} 79. Nd6 {[%emt 0:00:04]} (79. Kh4 $1 $16 {Threatens to win with Nd8.} Kf6 80. Kg4) 79... Nf6+ {[%emt 0:00:26]} (79... Kf6 $11) 80. Kf3 {[%emt 0:00:10]} ({Better is} 80. Kh4 $1 $16) 80... Nd7 $2 {[%emt 0:00:20][%mdl 8192]} (80... Kh5 $11) 81. Nxb5 $1 $18 {[%emt 0:00:47]} Kf6 {[%emt 0:03:14]} 82. Nd6 {[%emt 0:00:21]} Ke6 {[%emt 0:00:56] [#]} 83. Ne8 $1 {[%emt 0:01:08]} Ke7 {[%emt 0:00:17] [#]} 84. Nc7 $1 {[%emt 0:00:22]} Nb8 {[%emt 0:00:08]} 85. Kg4 {[%emt 0:00:07]} 1-0

[Event "45th FIDE Olympiad 2024"]
[Site "Budapest"]
[Date "2024.09.11"]
[Round "1.32"]
[White "Mtsetfwa, Philani"]
[Black "Asllani, Muhamet"]
[Result "0-1"]
[ECO "C65"]
[WhiteElo "1688"]
[BlackElo "2191"]
[Annotator "NA"]
[PlyCount "68"]
[EventDate "2024.09.05"]
[EventType "team-tourn"]
[EventCountry "HUN"]
[SourceTitle "playchess.com"]
[Source "ChessBase"]
[SourceQuality "1"]
[WhiteTeam "Eswatini"]
[BlackTeam "Kosovo"]
[BlackTeamCountry "KOS"]
[TimeControl "40/5400+30:1800+30"]

1. e4 e5 2. Nf3 Nc6 3. Bb5 Nf6 4. d3 Bc5 5. O-O d6 6. Re1 O-O 7. c3 a6 8. Ba4 b5 9. Bc2 Ng4 10. Re2 f5 11. d4 Bb6 12. dxe5 dxe5 13. Qd5+ Qxd5 14. exd5 Na5 15. h3 e4 16. Ne1 Nf6 17. a4 Bb7 18. Na3 Bxd5 19. Be3 Bxe3 20. fxe3 Nc4 21. Nxc4 bxc4 22. Bd1 Rfb8 23. Ra2 Rb6 24. Nc2 c5 25. Rd2 Be6 26. Be2 Nd7 27. a5 Rc6 28. Rxd7 Bxd7 29. Bxc4+ Be6 30. Bxe6+ Rxe6 31. Na3 Rd8 32. Nc4 Rd1+ 33. Kf2 Rc1 34. Nb6 Rc2+ 0-1

[Event "45th FIDE Olympiad 2024"]
[Site "Budapest"]
[Date "2024.09.11"]
[Round "1.33"]
[White "Vitiugov, Nikita"]
[Black "Bai, Adelard"]
[Result "1-0"]
[ECO "C72"]
[WhiteElo "2676"]
[BlackElo "2378"]
[Annotator "TA"]
[PlyCount "83"]
[EventDate "2024.09.05"]
[EventType "team-tourn"]
[EventCountry "HUN"]
[SourceTitle "playchess.com"]
[Source "ChessBase"]
[SourceQuality "1"]
[WhiteTeam "England"]
[BlackTeam "Chinese Taipei"]
[WhiteTeamCountry "ENG"]
[TimeControl "40/5400+30:1800+30"]

{[%evp 13,83,39,50,35,48,40,43,36,35,29,34,28,54,41,39,31,52,37,37,43,84,61,60,55,44,46,41,50,52,55,61,54,83,70,79,75,89,89,95,81,90,81,169,167,168,166,172,83,150,150,174,176,181,173,156,163,169,142,217,232,238,242,241,218,29963,29966,29967,29970,29972,29971,29978,29979]} 1. e4 e5 2. Nf3 Nc6 3. Bb5 a6 4. Ba4 d6 5. O-O Bd7 6. c4 g6 7. d4 Bg7 8. Bxc6 Bxc6 9. dxe5 dxe5 10. Qc2 {White is slightly better.} Ne7 11. Nc3 O-O 12. Be3 Qc8 13. b4 Bd7 14. a4 Bg4 15. Nd2 Nc6 16. Nd5 Re8 17. Qb2 Nd4 18. f3 Be6 19. Nb3 Nxb3 20. Qxb3 Bxd5 21. cxd5 Qd7 22. Rac1 c6 23. Rfd1 {aiming for dxc6. White is more active.} cxd5 24. Qxd5 Qxd5 25. exd5 {Hoping for d6.} Re7 26. Bb6 $1 $36 {[%mdl 2048] Strongly threatening d6. White has strong initiative.} Rd7 {[#]} 27. Rc7 $1 Rad8 {[#]} (27... Rxc7 $16 {was called for.} 28. Bxc7 Bf6) 28. Rxb7 $3 $18 {[%mdl 512]} Rxb7 29. Bxd8 {[%mdl 4096] Endgame. Black must now prevent d6. KRB-KRB} Kf8 (29... Rxb4 $2 {perishes.} 30. d6 Rb8 31. Bc7 $18) 30. Ba5 (30. Rc1 $18 {and White stays clearly on top. Rc8 would now be deadly.} Ke8 31. Ba5) 30... Ke7 (30... Bh6 $142) 31. Rc1 $16 Kd6 32. Rc6+ Kxd5 33. Rxa6 f5 {[%cal Bf7f5,Bf5e4][%mdl 32]} 34. b5 e4 35. Kf1 Bd4 (35... Be5 $16 36. fxe4+ fxe4) 36. Ra8 $18 Kc4 37. fxe4 fxe4 {Threatens to win with ...Rf7+.} 38. Ke2 Ra7 $2 (38... g5 $18 39. Be1 Kb3) 39. Rxa7 {White mates.} Bxa7 40. Bc7 Kc5 41. Ke3 Kd5+ 42. b6 {Weighted Error Value: White=0.07 (flawless) /Black=0.34.  Mistake:       	White=1     	Black=4      Inaccurate:     	---       	Black=3      OK:         	White=9     	Black=8      Best:        	White=4     	Black=3      Strong:       	White=2     	---        Brilliant:      	White=1     	---} 1-0

[Event "45th FIDE Olympiad 2024"]
[Site "Budapest"]
[Date "2024.09.11"]
[Round "1.33"]
[White "Moncur, Cecil"]
[Black "Atabayev, Saparmyrat"]
[Result "0-1"]
[ECO "E12"]
[WhiteElo "1839"]
[BlackElo "2516"]
[Annotator "TA"]
[PlyCount "92"]
[EventDate "2024.09.05"]
[EventType "team-tourn"]
[EventCountry "HUN"]
[SourceTitle "playchess.com"]
[Source "ChessBase"]
[SourceQuality "1"]
[WhiteTeam "Bahamas"]
[BlackTeam "Turkmenistan"]
[WhiteTeamCountry "BAH"]
[BlackTeamCountry "TKM"]
[TimeControl "40/5400+30:1800+30"]

{[%evp 9,92,28,30,-12,0,0,5,-5,0,0,0,-25,-6,-19,-10,-7,-11,-32,-22,-31,-31,-54,-30,-54,-57,-82,-82,-78,-77,-110,-106,-115,-87,-135,-39,-92,-88,-94,-89,-96,-75,-127,-98,-125,-119,-134,-133,-134,-120,-140,-127,-127,-127,-236,-117,-331,-332,-391,-354,-423,-442,-432,-400,-441,-435,-543,-530,-956,-816,-867,-879,-730,-918,-907,-827,-1476,-1450,-1452,-1321,-1728,-1908,-29980,-5716,-29983,-29984]} 1. d4 Nf6 2. c4 e6 3. Nf3 b6 4. a3 Ba6 5. Qc2 d5 6. e3 Be7 7. Bd3 c5 8. cxd5 {[#] Bxa6 would now be deadly. The position is equal.} Bxd3 9. Qxd3 exd5 10. Nc3 c4 11. Qc2 (11. Qf5 {feels hotter.} Nc6 12. Ne5 g6 13. Qf3) 11... O-O 12. O-O Nc6 13. Bd2 a6 14. h3 b5 15. Rfc1 Na5 {Strongly threatening ...Nb3.} 16. Rab1 Re8 17. Qf5 {[%cal Oc3d5]} Nb3 18. Rd1 g6 19. Qc2 Bd6 20. Be1 Rb8 21. Nd2 (21. Ne5 $142) 21... Na5 {Black is much more active.} ({Black should play} 21... Nxd2 $17 22. Bxd2 Bc7) 22. Nf3 {[#]} ({White should try} 22. Nf1 $15) 22... Nc6 $1 $17 23. Ra1 a5 24. Ne2 Qe7 25. g3 (25. b3 $142) 25... Ra8 26. Kg2 b4 27. axb4 axb4 28. Rdb1 Ra7 29. Rc1 Rea8 30. Rxa7 Rxa7 31. Nf4 (31. Rb1 $17) 31... Ra2 (31... Bxf4 $19 32. gxf4 b3) 32. Rb1 $2 {Loses the game.} (32. Nxd5 $17 {is the only way for White.} Nxd5 33. Qxc4 Nxe3+ (33... Rxb2 $2 {loses.} 34. Qxd5 Na7 35. e4 $18) 34. fxe3 Rxb2+ 35. Rc2 Rxc2+ 36. Qxc2) 32... b3 $19 33. Qc1 Bxf4 34. gxf4 {White is weak on the light squares} Qe4 35. Bc3 Ne8 36. Qd1 Nd6 37. Kg1 Nb5 38. Ne5 Nxe5 39. dxe5 Nxc3 40. bxc3 {[%mdl 4096] Endgame. KQR-KQR} Qc2 41. Qe1 Qe2 42. Kg2 Qxe1 43. Rxe1 Rc2 44. Rd1 Rxc3 {...b2 is the strong threat.} 45. Rxd5 b2 46. Rb5 Rb3 {Weighted Error Value: White=0.98/Black=0.11 (very precise) .  Loses game:     	White=1     	---        Mistake:       	White=4     	Black=2      Inaccurate:     	White=2     	---        OK:         	White=5     	Black=10     Best:        	White=1     	---        Strong:       	---       	Black=1} 0-1

[Event "45th FIDE Olympiad 2024"]
[Site "Budapest"]
[Date "2024.09.11"]
[Round "1.34"]
[White "Song, Raymond"]
[Black "Howell, David W L"]
[Result "1/2-1/2"]
[ECO "B19"]
[WhiteElo "2503"]
[BlackElo "2677"]
[Annotator "TA"]
[PlyCount "65"]
[EventDate "2024.09.05"]
[EventType "team-tourn"]
[EventCountry "HUN"]
[SourceTitle "playchess.com"]
[Source "ChessBase"]
[SourceQuality "1"]
[WhiteTeam "Chinese Taipei"]
[BlackTeam "England"]
[BlackTeamCountry "ENG"]
[TimeControl "40/5400+30:1800+30"]

{[%evp 18,65,0,16,22,18,18,2,6,-4,0,0,0,-6,-8,0,0,0,6,0,0,0,0,0,-7,-4,0,0,0,0,0,0,0,0,0,0,0,0,0,-44,-23,-24,-14,-16,0,-7,-8,-7,0,-7]} 1. e4 {[%emt 0:00:04]} c6 {[%emt 0:01:09]} 2. d4 {[%emt 0:00:13]} d5 {[%emt 0:00:08]} 3. Nd2 {[%emt 0:00:33][%cal Bb1d2,Bd2e4,Be4g3][%mdl 32]} dxe4 {[%emt 0:01:43]} 4. Nxe4 {[%emt 0:00:06]} Bf5 {[%emt 0:02:27]} 5. Ng3 {[%emt 0:00:06]} Bg6 {[%emt 0:00:08]} 6. h4 {[%emt 0:00:09]} h6 {[%emt 0:00:07]} 7. Nf3 {[%emt 0:00:05]} e6 {[%emt 0:00:23]} 8. Ne5 {[%emt 0:00:10]} Bh7 {[%emt 0:00:07]} 9. Bd3 {[%emt 0:00:10]} Bxd3 {[%emt 0:13:05]} 10. Qxd3 {[%emt 0:00:06]} Nd7 {[%emt 0:00:16]} 11. Qe2 {[%emt 0:00:24]} Ngf6 {[%emt 0:16:25]} 12. O-O {[%emt 0:00:49]} Be7 {[%emt 0:03:34]} 13. Rd1 {[%emt 0:00:35]} Qc7 {[%emt 0:12:45]} 14. Nxd7 {[%emt 0:12:25]} Qxd7 {[%emt 0:11:22]} 15. c4 {[%emt 0:01:50]} O-O {[%emt 0:00:16]} 16. Bf4 {[%emt 0:01:36]} Bd6 {[%emt 0:09:09]} 17. Be5 {[%emt 0:00:28] [#] Strongly threatening Bxf6.} Qe7 {[%emt 0:00:17]} 18. Rd3 {[%emt 0:01:44]} Rfd8 {[%emt 0:00:25]} 19. Rad1 {[%emt 0:00:42]} Rd7 {[%emt 0:00:25]} 20. h5 {[%emt 0:04:04]} Rad8 {[%emt 0:02:00]} 21. b3 {[%emt 0:00:10]} Bxe5 {[%emt 0:06:29]} 22. dxe5 {[%emt 0:00:06]} Rxd3 {[%emt 0:00:16]} 23. Rxd3 {[%emt 0:00:06]} Rxd3 {[%emt 0:00:24]} 24. Qxd3 $11 {[%emt 0:00:07][%mdl 4096] Endgame. KQN-KQN} Ng4 {[%emt 0:00:06]} 25. Qd4 {[%emt 0:09:28][%csl LRa7,LRg4]} Qg5 {[%emt 0:04:49]} 26. Qxa7 {[%emt 0:00:08]} Qxe5 {[%emt 0:03:47]} 27. Nf1 {[%emt 0:00:10]} Qb2 {[%emt 0:08:15]} ({Don't play} 27... Qxh5 28. Qxb7 Qf5 29. Qb6 $14) 28. Qb8+ {[%emt 0:10:08]} Kh7 {[%emt 0:00:03]} 29. Qf4 {[%emt 0:00:05]} f5 {[%emt 0:01:43]} 30. Qd2 {[%emt 0:00:13] The position is equal.} Qa1 {[%emt 0:02:05]} 31. g3 {[%emt 0:06:49]} Nf6 {[%emt 0:00:47]} 32. Qe2 {[%emt 0:02:47]} Ne4 {[%emt 0:00:07]} 33. Kg2 {[%emt 0:00:05] A balanced but interesting game.   Weighted Error Value: White=0.04 (flawless) /Black=0.01 (flawless) .  OK:         	White=11    	Black=12     Best:        	White=1     	---} 1/2-1/2

[Event "45th FIDE Olympiad 2024"]
[Site "Budapest"]
[Date "2024.09.11"]
[Round "1.34"]
[White "Annaberdiyev, Meylis"]
[Black "Ferguson, Joseph"]
[Result "1-0"]
[ECO "C02"]
[WhiteElo "2431"]
[BlackElo "1797"]
[Annotator "TA"]
[PlyCount "69"]
[EventDate "2024.09.05"]
[EventType "team-tourn"]
[EventCountry "HUN"]
[SourceTitle "playchess.com"]
[Source "ChessBase"]
[SourceQuality "1"]
[WhiteTeam "Turkmenistan"]
[BlackTeam "Bahamas"]
[WhiteTeamCountry "TKM"]
[BlackTeamCountry "BAH"]
[TimeControl "40/5400+30:1800+30"]

{[%evp 9,69,18,35,35,39,29,38,27,28,31,30,32,34,35,45,33,42,29,64,68,100,105,110,112,112,105,99,98,97,91,92,93,175,172,354,267,252,269,289,216,197,200,212,215,199,205,244,243,747,779,775,777,786,784,804,803,777,793,787,780,859,840]} 1. e4 e6 2. d4 d5 3. e5 Ne7 4. Nf3 b6 5. c3 Qd7 6. h4 Ba6 7. Bxa6 Nxa6 8. Qd3 {White is slightly better.} Nb8 {[%cal Ba6b8,Bb8c6,Bc6d8,Bd8b7][%mdl 32]} 9. h5 h6 10. Na3 Nf5 11. Nc2 c5 12. Bd2 Nc6 13. b4 {[%cal Bb2b4,Bb4b5][%mdl 32]} cxd4 14. cxd4 b5 15. a4 ({But not} 15. Qxb5 $6 Rb8 (15... Nxe5 16. Qxd7+ Nxd7 17. Ke2 $11) 16. Qd3 (16. Qa4 Nxb4 17. Qxd7+ Kxd7 $11) 16... Bxb4 $11) 15... bxa4 16. b5 (16. Rxa4 $2 Nxe5 17. Nxe5 Qxa4 $19) 16... Nd8 17. Rxa4 {White is more active.} Rb8 18. Ra5 Nb7 19. Ra2 {[%cal Og2g4] g4! would now be deadly.} Nd8 20. Rb2 $36 {[%mdl 2048] White is on the roll.} Qc7 (20... Ne7 $16) 21. O-O $18 a6 $2 {[#]} (21... Qb7 22. Ra1 Ne7) 22. b6 $1 {[%mdl 512]} Qb7 {Black is weak on the dark squares} 23. Ra1 Ra8 24. Qb3 Ne7 25. Nfe1 {[%cal Bf3e1,Be1d3,Bd3c5][%mdl 32]} Nec6 26. Qg3 a5 27. Nd3 {Threatens to win with Nc5.} Qb8 28. Nc5 Nxd4 $2 (28... Nb7 29. Na4 f6) 29. Nxd4 {[%cal Bc2d4,Bd4b5,Bb5c7][%mdl 32] [#] And now b7 would win. White is clearly winning.} (29. Rxa5 $2 {perishes.} Ne2+ 30. Kh2 Nxg3 $19) 29... Bxc5 30. Nb5 Kf8 31. Nc7 Bxb6 32. Qa3+ Kg8 33. Nxa8 Bxf2+ 34. Kxf2 Qxa8 35. Qxa5 {Weighted Error Value: White=0.10 (very precise) /Black=0.20 (precise) .  Mistake:       	---       	Black=3      Inaccurate:     	---       	Black=2      OK:         	White=12    	Black=10     Best:        	White=1     	Black=3} 1-0

[Event "45th FIDE Olympiad 2024"]
[Site "Budapest"]
[Date "2024.09.11"]
[Round "1.35"]
[White "Adams, Michael"]
[Black "Yang, Ching Wei"]
[Result "1-0"]
[ECO "C55"]
[WhiteElo "2661"]
[BlackElo "2121"]
[Annotator "TA"]
[PlyCount "81"]
[EventDate "2024.09.05"]
[EventType "team-tourn"]
[EventCountry "HUN"]
[SourceTitle "playchess.com"]
[Source "ChessBase"]
[SourceQuality "1"]
[WhiteTeam "England"]
[BlackTeam "Chinese Taipei"]
[WhiteTeamCountry "ENG"]
[TimeControl "40/5400+30:1800+30"]

{[%evp 18,81,10,3,12,7,22,10,57,58,55,65,75,72,81,81,86,56,144,145,154,147,138,82,85,86,107,109,133,120,162,143,134,142,206,218,349,352,364,352,404,413,401,392,446,409,478,479,496,481,804,796,1128,925,1500,1472,1108,916,2587,1766,2491,1985,2458,2436,1725,1693]} 1. e4 {[%emt 0:00:04]} e5 {[%emt 0:00:15]} 2. Nf3 {[%emt 0:00:18]} Nc6 {[%emt 0:00:21]} 3. Bb5 {[%emt 0:00:20]} a6 {[%emt 0:00:08]} 4. Ba4 {[%emt 0:00:04]} Nf6 {[%emt 0:00:47]} 5. O-O {[%emt 0:00:18]} Be7 {[%emt 0:00:34]} 6. d3 {[%emt 0:01:57]} b5 {[%emt 0:00:54]} 7. Bb3 {[%emt 0:00:07]} d6 {[%emt 0:00:41]} 8. c3 {[%emt 0:01:59]} O-O {[%emt 0:05:44]} 9. h3 {[%emt 0:00:21]} Na5 {[%emt 0:06:17]} 10. Bc2 {[%emt 0:00:08]} c5 {[%emt 0:00:13]} 11. d4 {[%emt 0:00:36]} Qc7 {[%emt 0:02:51]} 12. d5 {[%emt 0:01:25]} c4 {[%emt 0:04:19]} (12... Nd7 $11 {might be stronger.}) 13. b4 $14 {[%emt 0:02:19]} cxb3 {[%emt 0:01:43]} 14. axb3 {[%emt 0:00:06]} Nb7 {[%emt 0:06:23]} 15. b4 {[%emt 0:01:48] Wards off Nc5} Nd7 {[%emt 0:03:49]} 16. Be3 {[%emt 0:18:32]} Nb6 {[%emt 0:03:22]} 17. Nbd2 {[%emt 0:06:23]} f5 {[%emt 0:16:52]} (17... Bd7 $14) 18. exf5 $16 {[%emt 0:04:11]} Bxf5 {[%emt 0:01:44]} 19. Bxf5 {[%emt 0:07:01]} Rxf5 {[%emt 0:00:55]} 20. Qc2 {[%emt 0:06:10]} (20. Qb3 $142) 20... Rff8 {[%emt 0:01:52]} 21. Qd3 {[%emt 0:02:49]} Rfc8 {[%emt 0:03:29]} 22. Ra2 {[%emt 0:11:06] White has more active pieces.} Na4 {[%emt 0:06:38]} 23. Rc2 {[%emt 0:05:23]} a5 {[%emt 0:07:06]} (23... Nxc3 $2 24. Rfc1 $18) 24. Rfc1 {[%emt 0:02:43]} Qd7 {[%emt 0:03:25]} 25. Ne4 {[%emt 0:01:12]} g6 {[%emt 0:08:18]} (25... Rc4 $16 {was necessary.} 26. Neg5 g6) 26. Bg5 $18 {[%emt 0:04:33]} Bxg5 {[%emt 0:07:02]} (26... Rab8 {was called for.} 27. Bxe7 Qxe7) 27. Nfxg5 {[%emt 0:00:04]} Rf8 {[%emt 0:00:23] Inhibits Nf6+.} 28. Ne6 {[%emt 0:01:33]} Rf7 {[%emt 0:01:04]} 29. c4 {[%emt 0:06:11]} axb4 {[%emt 0:03:58]} 30. cxb5 {[%emt 0:00:15]} Nac5 {[%emt 0:00:52]} 31. N4xc5 {[%emt 0:01:35]} Nxc5 {[%emt 0:00:13]} 32. Nxc5 {[%emt 0:00:07] White is clearly winning.} dxc5 {[%emt 0:00:04]} 33. Rxc5 {[%emt 0:00:07]} Ra3 {[%emt 0:01:33]} (33... Kg7 $142 34. b6 Qf5 35. Qxf5 gxf5) 34. Qe4 {[%emt 0:01:42][%csl LRb4,LRe5]} Qf5 {[%emt 0:01:05]} 35. Qxf5 {[%emt 0:01:47]} ({Weaker is} 35. Qxb4 Qxf2+ 36. Kh2 (36. Kh1 Rxh3+ 37. gxh3 Qf3+ 38. Kh2 Qf2+ 39. Kh1 Qf3+ 40. Kh2 Qf2+ 41. Kh1 $11) 36... Rg3 37. Rc8+ (37. Qe4 $2 Rf4 $19) 37... Kg7 $11) 35... gxf5 {[%emt 0:01:12][%mdl 4096] Endgame. KRR-KRR} 36. b6 {[%emt 0:00:55]} b3 {[%emt 0:01:50]} 37. Rb5 {[%emt 0:00:52] [#] b7 would kill now.} Rb7 {[%emt 0:00:13]} 38. Rc8+ {[%emt 0:00:59]} Kf7 {[%emt 0:00:16]} 39. d6 {[%emt 0:02:24][%cal Bd5d6,Bd6d7][%mdl 32] Rc7+ is the strong threat.} Ke6 {[%emt 0:01:04]} 40. Rc7 {[%emt 0:01:02]} Rb8 {[%emt 0:00:30]} 41. d7 {[%emt 0:30:51] Weighted Error Value: White=0.11 (very precise) /Black=0.31.  Mistake:       	White=1     	Black=5      Inaccurate:     	White=1     	Black=2      OK:         	White=11    	Black=7      Best:        	White=1     	Black=1} 1-0